fUST/lending_fUST_20250218
["ID","MTS","AMOUNT","RATE_DAILY","PERIOD"]
[353452200,1739841044509,-500.0,0.00013863,2]
[353452201,1739841044519,-500.0,0.00013863,2]
[353452202,1739841044528,-500.0,0.00013863,2]
[353452203,1739841044538,-500.0,0.00013863,2]
[353452204,1739841044547,-1287.64,0.00013863,2]
[353452205,1739841044557,-500.0,0.00013863,2]
[353452206,1739841044565,-4585.37,0.00013863,2]
[353452207,1739841044575,-500.0,0.00013863,2]
[353452208,1739841044584,-1953.8,0.00013863,2]
[353452209,1739841044593,-339.340015,0.00013863,2]
[353452210,1739841044603,-500.0,0.00013863,2]
[353452211,1739841044612,-500.0,0.00013863,2]
[353452212,1739841044621,-1233.6,0.00013863,2]
[353452213,1739841044630,-544.82,0.00013863,2]
[353452214,1739841044640,-339.340015,0.00013863,2]
[353452215,1739841044649,-500.0,0.00013863,2]
[353452216,1739841044661,-500.0,0.00013863,2]
[353452217,1739841044672,-681.14,0.00013863,2]
[353452218,1739841044682,-500.0,0.00013863,2]
[353452219,1739841044692,-500.0,0.00013863,2]
[353452220,1739841044701,-500.0,0.00013863,2]
[353452221,1739841044710,-14457.11,0.00013863,2]
[353452222,1739841044720,-500.0,0.00013863,2]
[353452223,1739841044729,-500.0,0.00013863,2]
[353452224,1739841044739,-500.0,0.00013863,2]
[353452225,1739841044749,-1771.04,0.00013863,2]
[353452226,1739841044758,-500.0,0.00013863,2]
[353452227,1739841044768,-500.0,0.00013863,2]
[353452228,1739841044777,-788.93,0.00013863,2]
[353452229,1739841044787,-310.32,0.00013863,2]
[353452230,1739841044796,-834.99,0.00013863,2]
[353452231,1739841044887,-500.0,0.00013863,2]
[353452232,1739841044899,-512.32,0.00013863,2]
[353452233,1739841044910,-500.0,0.00013863,2]
[353452234,1739841044920,-500.0,0.00013863,2]
[353452235,1739841044930,-657.65,0.00013863,2]
[353452236,1739841044940,-952.49,0.00013863,2]
[353452237,1739841044950,-500.0,0.00013863,2]
[353452238,1739841044959,-844.56,0.00013863,2]
[353452239,1739841044969,-500.0,0.00013863,2]
[353452240,1739841044978,-500.0,0.00013863,2]
[353452241,1739841044988,-556.87,0.00013863,2]
[353452242,1739841044998,-500.0,0.00013863,2]
[353452243,1739841045008,-500.0,0.00013863,2]
[353452244,1739841045018,-500.0,0.00013863,2]
[353452245,1739841045027,-819.25,0.00013863,2]
[353452246,1739841045036,-1918.2,0.00013863,2]
[353452247,1739841045045,-461.76,0.00013863,2]
[353452248,1739841045055,-1000.0,0.00013871,2]
[353452249,1739841045064,-500.0,0.00013873,2]
[353452250,1739841045074,-1000.0,0.00013882,2]
[353452251,1739841045083,-1000.0,0.00013894,2]
[353452252,1739841045093,-200.0,0.000139,2]
[353452253,1739841045102,-200.0,0.000139,2]
[353452254,1739841045111,-200.0,0.000139,3]
[353452255,1739841045120,-200.0,0.000139,3]
[353452256,1739841045129,-200.0,0.000139,5]
[353452257,1739841045139,-200.0,0.000139,5]
[353452258,1739841045148,-200.0,0.000139,6]
[353452259,1739841045158,-200.0,0.000139,6]
[353452260,1739841045167,-200.0,0.000139,6]
[353452261,1739841045177,-200.0,0.000139,7]
[353452262,1739841045188,-200.0,0.000139,7]
[353452263,1739841045197,-151.56160733,0.000139,2]
[353452264,1739841045206,-1000.0,0.00013912,2]
[353452265,1739841045216,-1000.0,0.00013917,2]
[353452266,1739841045225,-1000.0,0.00013917,2]
[353452267,1739841045235,-151.0,0.00013944,2]
[353452268,1739841045244,-500.0,0.00013945,2]
[353452269,1739841045253,-588.39,0.00013945,2]
[353452270,1739841045262,-586.79,0.00013945,2]
[353452271,1739841045272,-500.0,0.00013945,2]
[353452272,1739841045281,-500.0,0.00013945,2]
[353452273,1739841045291,-500.0,0.00013945,2]
[353452274,1739841045301,-532.03,0.00013945,2]
[353452275,1739841045311,-500.0,0.00013945,2]
[353452276,1739841045320,-500.0,0.00013945,2]
[353452277,1739841045330,-581.64,0.00013945,2]
[353452278,1739841045340,-500.0,0.00013945,2]
[353452279,1739841045349,-500.0,0.00013945,2]
[353452280,1739841045359,-500.0,0.00013945,2]
[353452281,1739841045369,-560.91,0.00013945,2]
[353452282,1739841045379,-500.0,0.00013945,2]
[353452283,1739841045388,-500.0,0.00013945,2]
[353452284,1739841045397,-500.0,0.00013945,2]
[353452285,1739841045406,-1000.0,0.00013945,2]
[353452286,1739841045417,-500.0,0.00013945,2]
[353452287,1739841045427,-500.0,0.00013945,2]
[353452288,1739841045436,-635.17,0.00013945,2]
[353452289,1739841045446,-500.0,0.00013945,2]
[353452290,1739841045455,-500.0,0.00013945,2]
[353452291,1739841045464,-500.0,0.00013945,2]
[353452292,1739841045474,-500.0,0.00013945,2]
[353452293,1739841045483,-500.0,0.00013945,2]
[353452294,1739841045492,-500.0,0.00013945,2]
[353452295,1739841045502,-500.0,0.00013945,2]
[353452296,1739841045511,-500.0,0.00013945,2]
[353452297,1739841045521,-500.0,0.00013945,2]
[353452298,1739841045530,-500.0,0.00013945,2]
[353452299,1739841045540,-500.0,0.00013945,2]
[353452300,1739841045551,-500.0,0.00013945,2]
[353452301,1739841045560,-284.22903925,0.00013945,2]
[353452314,1739841045755,-5890.92,0.00013698,2]
[353452315,1739841045765,-5890.92,0.00013777,2]
[353452316,1739841045775,-5890.92,0.00013778,2]
[353452317,1739841045785,-5890.92,0.00013779,2]
[353452318,1739841045794,-5890.92,0.00013779,2]
[353452319,1739841045804,-1449.4,0.00013779,2]
[353452320,1739841045823,-4441.52,0.00013779,2]
[353452321,1739841045832,-1323.20379321,0.0001378,5]
[353452322,1739841045841,-215.77096075,0.00013945,2]
[353452323,1739841045853,-561.78,0.00013945,2]
[353452324,1739841045862,-3204.2,0.00013945,2]
[353452325,1739841045871,-500.0,0.00013945,2]
[353452326,1739841045881,-500.0,0.00013945,2]
[353452327,1739841045892,-500.0,0.00013945,2]
[353452328,1739841045902,-500.0,0.00013945,2]
[353452329,1739841045914,-500.0,0.00013945,2]
[353452330,1739841045924,-500.0,0.00013945,2]
[353452331,1739841045934,-500.0,0.00013945,2]
[353452332,1739841045945,-500.0,0.00013945,2]
[353452333,1739841045955,-500.0,0.00013945,2]
[353452334,1739841045965,-566.39,0.00013945,2]
[353452335,1739841045975,-500.0,0.00013945,2]
[353452336,1739841045985,-500.0,0.00013945,2]
[353452337,1739841045995,-921.07,0.00013945,2]
[353452338,1739841046005,-2521.56,0.00013945,2]
[353452339,1739841046014,-500.0,0.00013945,2]
[353452340,1739841046024,-500.0,0.00013945,2]
[353452341,1739841046034,-658.29,0.00013945,2]
[353452343,1739841046043,-584.93,0.00013945,2]
[353452345,1739841046053,-1237.06,0.00013945,2]
[353452346,1739841046063,-1096.75,0.00013945,2]
[353452347,1739841046072,-500.0,0.00013945,2]
[353452348,1739841046082,-500.0,0.00013945,2]
[353452349,1739841046092,-500.0,0.00013945,2]
[353452350,1739841046102,-500.0,0.00013945,2]
[353452351,1739841046111,-1287.64,0.00013945,2]
[353452352,1739841046121,-4585.37,0.00013945,2]
[353452353,1739841046131,-500.0,0.00013945,2]
[353452354,1739841046140,-1953.8,0.00013945,2]
[353452355,1739841046150,-500.0,0.00013945,2]
[353452356,1739841046162,-339.340015,0.00013945,2]
[353452357,1739841046171,-500.0,0.00013945,2]
[353452358,1739841046181,-1233.6,0.00013945,2]
[353452359,1739841046191,-544.82,0.00013945,2]
[353452360,1739841046201,-339.340015,0.00013945,2]
[353452361,1739841046210,-500.0,0.00013945,2]
[353452362,1739841046219,-441.82,0.00013945,2]
[353452363,1739841046229,-681.14,0.00013945,2]
[353452364,1739841046239,-500.0,0.00013945,2]
[353452365,1739841046248,-500.0,0.00013945,2]
[353452366,1739841046258,-500.0,0.00013945,2]
[353452367,1739841046267,-14457.11,0.00013945,2]
[353452368,1739841046277,-500.0,0.00013945,2]
[353452369,1739841046286,-527.7,0.00013945,2]
[353452370,1739841046295,-1771.04,0.00013945,2]
[353452371,1739841046304,-500.0,0.00013945,2]
[353452372,1739841046314,-500.0,0.00013945,2]
[353452373,1739841046323,-788.93,0.00013945,2]
[353452374,1739841046332,-834.99,0.00013945,2]
[353452375,1739841046342,-512.32,0.00013945,2]
[353452376,1739841046351,-373.39,0.00013945,2]
[353452377,1739841046361,-163.82245065,0.00013945,2]
[353452378,1739841046370,-500.0,0.00013945,2]
[353452379,1739841046379,-657.65,0.00013945,2]
[353452380,1739841046388,-952.49,0.00013945,2]
[353452381,1739841046398,-380.9,0.00013945,2]
[353452382,1739841046407,-844.56,0.00013945,2]
[353452383,1739841046419,-500.0,0.00013945,2]
[353452384,1739841046428,-556.87,0.00013945,2]
[353452385,1739841046437,-500.0,0.00013945,2]
[353452386,1739841046446,-500.0,0.00013945,2]
[353452387,1739841046455,-500.0,0.00013945,2]
[353452388,1739841046464,-819.25,0.00013945,2]
[353452389,1739841046474,-1918.2,0.00013945,2]
[353452390,1739841046483,-165.251073,0.00013968,2]
[353452391,1739841046492,-158.61,0.00013986,2]
[353452392,1739841046501,-314.0,0.00013986,2]
[353452393,1739841046511,-314.0,0.00013986,2]
[353452394,1739841046520,-314.0,0.00013986,2]
[353452395,1739841046529,-314.0,0.00013986,2]
[353452396,1739841046538,-349.0,0.00013986,2]
[353452397,1739841046547,-314.0,0.00013986,2]
[353452398,1739841046556,-349.0,0.00013986,2]
[353452399,1739841046565,-314.0,0.00013986,2]
[353452400,1739841046575,-349.0,0.00013986,2]
[353452401,1739841046584,-314.0,0.00013986,2]
[353452402,1739841046593,-349.0,0.00013986,2]
[353452403,1739841046602,-314.0,0.00013986,2]
[353452404,1739841046612,-349.0,0.00013986,2]
[353452405,1739841046622,-314.0,0.00013986,2]
[353452406,1739841046631,-349.0,0.00013986,2]
[353452407,1739841046640,-314.0,0.00013986,2]
[353452408,1739841046649,-314.0,0.00013986,2]
[353452409,1739841046659,-349.0,0.00013986,2]
[353452410,1739841046669,-349.0,0.00013986,2]
[353452411,1739841046679,-314.0,0.00013986,2]
[353452412,1739841046688,-349.0,0.00013986,2]
[353452413,1739841046698,-314.0,0.00013986,2]
[353452414,1739841046708,-349.0,0.00013986,2]
[353452415,1739841046717,-314.0,0.00013986,2]
[353452416,1739841046727,-349.0,0.00013986,2]
[353452417,1739841046737,-314.0,0.00013986,2]
[353452418,1739841046747,-349.0,0.00013986,2]
[353452419,1739841046756,-314.0,0.00013986,2]
[353452420,1739841046765,-349.0,0.00013986,2]
[353452421,1739841046775,-314.0,0.00013986,2]
[353452422,1739841046784,-349.0,0.00013986,2]
[353452423,1739841046794,-314.0,0.00013986,2]
[353452424,1739841046803,-314.0,0.00013986,2]
[353452425,1739841046814,-349.0,0.00013986,2]
[353452426,1739841046828,-236.87,0.00013986,2]
[353452427,1739841046970,-349.0,0.00013986,2]
[353452428,1739841046981,-349.0,0.00013986,2]
[353452429,1739841046992,-349.0,0.00013986,2]
[353452430,1739841047002,-349.0,0.00013986,2]
[353452431,1739841047013,-349.0,0.00013986,2]
[353452432,1739841047022,-349.0,0.00013986,2]
[353452433,1739841047032,-349.0,0.00013986,2]
[353452434,1739841047041,-349.0,0.00013986,2]
[353452435,1739841047051,-349.0,0.00013986,2]
[353452436,1739841047062,-349.0,0.00013986,2]
[353452437,1739841047071,-349.0,0.00013986,2]
[353452438,1739841047081,-349.0,0.00013986,2]
[353452439,1739841047090,-349.0,0.00013986,2]
[353452440,1739841047100,-397.05,0.00013986,2]
[353452441,1739841047109,-1000.0,0.00013998,2]
[353452442,1739841047120,-1000.0,0.00013998,2]
[353452443,1739841047141,-77067.33710083,0.00014,7]
[353452444,1739841047270,-76367.6241669,0.00014,7]
[353452445,1739841047334,-450.50515382,0.00014,2]
[353452446,1739841047453,-1183.13302608,0.00014,2]
[353452447,1739841047577,-339.340015,0.00014,2]
[353452448,1739841047717,-339.340015,0.00014,2]
[353452449,1739841047798,-5319.90779935,0.00014,2]
[353452450,1739841048287,-501.54684381,0.00013698,2]
[353452451,1739841048297,-278.45315619,0.00013779,2]
[353452452,1739841048309,-682.104845,0.00013779,2]
[353452453,1739841048321,-373.58003138,0.00013779,2]
[353452454,1739841048333,-4556.78196743,0.00013779,2]
[353452455,1739841048343,-5890.92,0.00013779,2]
[353452456,1739841048354,-5890.92,0.00013779,2]
[353452457,1739841048363,-5890.92,0.00013779,2]
[353452458,1739841048373,-5891.09807931,0.00013779,2]
[353452459,1739841048384,-18169.35995325,0.00014,2]
[353452460,1739841048396,-1693.63578188,0.00014,2]
[353452461,1739841048530,-9748.8,0.00014,2]
[353452462,1739841048546,-3969.92407005,0.00014,2]
[353452463,1739841048559,-1959.93910923,0.00014,2]
[353452464,1739841048572,-1431.24494,0.00014,2]
[353452465,1739841048584,-547.47864237,0.00014,2]
[353452471,1739842036096,-400.0,0.00010685,2]
[353452472,1739842036119,-300.0,0.00013498,2]
[353452473,1739842036150,-386.72672206,0.00013499,2]
[353452474,1739842037116,-113.27327794,0.00013499,2]
[353452475,1739842037141,-219.9001933,0.00013499,2]
[353452476,1739842037162,-410.33528736,0.00013499,2]
[353452477,1739842049076,-89.66471264,0.00013499,2]
[353452478,1739842049098,-500.0,0.00013499,2]
[353452479,1739842049122,-500.0,0.00013499,2]
[353452480,1739842049149,-336.96338528,0.00013499,2]
[353452481,1739842051106,-163.03661472,0.00013499,2]
[353452482,1739842051129,-118.16655594,0.00013499,2]
[353452513,1739842232543,-151.3396543,0.00013499,2]
[353452514,1739842232553,-300.0,0.00013499,2]
[353452515,1739842232563,-80000.0,0.000135,2]
[353452516,1739842232573,-186.7492013,0.00013598,2]
[353452517,1739842232583,-1000.0,0.00013617,2]
[353452518,1739842232592,-1000.0,0.00013635,2]
[353452519,1739842232602,-4016.79564,0.0001364,5]
[353452520,1739842232611,-1000.0,0.00013683,2]
[353452521,1739842232620,-500.0,0.00013698,2]
[353452522,1739842232630,-500.0,0.00013698,2]
[353452523,1739842232639,-600.53411486,0.00013698,2]
[353452524,1739842232650,-500.0,0.00013698,2]
[353452525,1739842232771,-500.0,0.00013698,2]
[353452526,1739842232781,-500.0,0.00013698,2]
[353452527,1739842232791,-170.93,0.00013698,2]
[353452528,1739842232801,-500.0,0.00013698,2]
[353452529,1739842232810,-500.0,0.00013698,2]
[353452530,1739842232819,-500.0,0.00013698,2]
[353452531,1739842232828,-500.0,0.00013698,2]
[353452532,1739842232838,-500.0,0.00013698,2]
[353452533,1739842232847,-500.0,0.00013698,2]
[353452534,1739842232856,-500.0,0.00013698,2]
[353452535,1739842232866,-500.0,0.00013698,2]
[353452536,1739842232875,-500.0,0.00013698,2]
[353452537,1739842232885,-350.38718698,0.00013698,2]
[353452538,1739842232894,-500.0,0.00013698,2]
[353452539,1739842232903,-500.0,0.00013698,2]
[353452540,1739842232913,-500.0,0.00013698,2]
[353452541,1739842232922,-500.0,0.00013698,2]
[353452542,1739842232931,-500.0,0.00013698,2]
[353452543,1739842232941,-500.0,0.00013698,2]
[353452544,1739842232950,-500.0,0.00013698,2]
[353452545,1739842232961,-503.47738624,0.00013698,2]
[353452546,1739842232971,-500.0,0.00013698,2]
[353452547,1739842232979,-106.6511413,0.00013698,2]
[353452563,1739842238294,-324.10573333,0.00013698,2]
[353452564,1739842238304,-500.0,0.00013698,2]
[353452565,1739842238314,-500.0,0.00013698,2]
[353452566,1739842238324,-500.0,0.00013698,2]
[353452567,1739842238334,-500.0,0.00013698,2]
[353452568,1739842238343,-500.0,0.00013698,2]
[353452569,1739842238352,-500.0,0.00013698,2]
[353452570,1739842238361,-500.0,0.00013698,2]
[353452571,1739842238371,-500.0,0.00013698,2]
[353452572,1739842238380,-500.0,0.00013698,2]
[353452573,1739842238391,-500.0,0.00013698,2]
[353452574,1739842238400,-500.0,0.00013698,2]
[353452575,1739842238414,-500.0,0.00013698,2]
[353452576,1739842238423,-360.45263384,0.00013698,2]
[353452577,1739842238432,-609.92705253,0.00013698,2]
[353452578,1739842238441,-500.0,0.00013698,2]
[353452579,1739842238450,-500.0,0.00013698,2]
[353452580,1739842238459,-500.0,0.00013698,2]
[353452581,1739842238469,-546.17,0.00013698,2]
[353452582,1739842238479,-500.0,0.00013698,2]
[353452583,1739842238489,-500.0,0.00013698,2]
[353452584,1739842238499,-500.0,0.00013698,2]
[353452585,1739842238509,-607.3842335,0.00013698,2]
[353452586,1739842238518,-150.12808639,0.00013698,2]
[353452587,1739842238528,-369.10879852,0.00013698,2]
[353452588,1739842238537,-500.0,0.00013698,2]
[353452589,1739842238546,-500.0,0.00013698,2]
[353452590,1739842238556,-500.0,0.00013698,2]
[353452591,1739842238565,-500.0,0.00013698,2]
[353452592,1739842238575,-500.0,0.00013698,2]
[353452593,1739842238584,-500.0,0.00013698,2]
[353452594,1739842238594,-500.0,0.00013698,2]
[353452595,1739842238603,-500.0,0.00013698,2]
[353452596,1739842238613,-500.0,0.00013698,2]
[353452597,1739842238622,-500.0,0.00013698,2]
[353452598,1739842238631,-500.0,0.00013698,2]
[353452599,1739842238641,-447.01958492,0.00013698,2]
[353452600,1739842238650,-500.0,0.00013698,2]
[353452601,1739842238660,-500.0,0.00013698,2]
[353452602,1739842238669,-500.0,0.00013698,2]
[353452603,1739842238679,-513.88386975,0.00013698,2]
[353452604,1739842238689,-283.77913638,0.00013698,2]
[353452605,1739842238699,-500.0,0.00013698,2]
[353452606,1739842238708,-500.6529492,0.00013698,2]
[353452607,1739842238721,-500.0,0.00013698,2]
[353452608,1739842238730,-500.0,0.00013698,2]
[353452609,1739842238739,-500.0,0.00013698,2]
[353452610,1739842238749,-563.88,0.00013698,2]
[353452611,1739842238760,-500.0,0.00013698,2]
[353452612,1739842238769,-500.0,0.00013698,2]
[353452613,1739842238779,-500.0,0.00013698,2]
[353452614,1739842238789,-508.88796431,0.00013698,2]
[353452615,1739842238798,-562.35,0.00013698,2]
[353452616,1739842238808,-500.0,0.00013698,2]
[353452617,1739842238817,-500.0,0.00013698,2]
[353452618,1739842238827,-500.0,0.00013698,2]
[353452619,1739842238836,-500.0,0.00013698,2]
[353452620,1739842238846,-500.0,0.00013698,2]
[353452621,1739842238855,-500.0,0.00013698,2]
[353452622,1739842238865,-500.0,0.00013698,2]
[353452623,1739842238874,-500.0,0.00013698,2]
[353452624,1739842238884,-500.0,0.00013698,2]
[353452625,1739842238893,-500.0,0.00013698,2]
[353452626,1739842238902,-500.0,0.00013698,2]
[353452627,1739842238911,-500.0,0.00013698,2]
[353452628,1739842238920,-500.0,0.00013698,2]
[353452629,1739842238929,-500.0,0.00013698,2]
[353452630,1739842238938,-500.0,0.00013698,2]
[353452631,1739842238948,-500.0,0.00013698,2]
[353452632,1739842238957,-275.15,0.00013698,2]
[353452633,1739842238967,-500.0,0.00013698,2]
[353452634,1739842238976,-500.0,0.00013698,2]
[353452635,1739842238986,-500.0,0.00013698,2]
[353452636,1739842238995,-500.0,0.00013698,2]
[353452637,1739842239008,-581.64,0.00013698,2]
[353452638,1739842239019,-500.0,0.00013698,2]
[353452639,1739842239029,-500.0,0.00013698,2]
[353452640,1739842239039,-500.0,0.00013698,2]
[353452641,1739842239048,-500.0,0.00013698,2]
[353452642,1739842239057,-500.0,0.00013698,2]
[353452643,1739842239066,-500.0,0.00013698,2]
[353452644,1739842239076,-500.0,0.00013698,2]
[353452645,1739842239085,-500.0,0.00013698,2]
[353452646,1739842239095,-500.0,0.00013698,2]
[353452647,1739842239103,-500.0,0.00013698,2]
[353452648,1739842239113,-500.0,0.00013698,2]
[353452649,1739842239122,-500.0,0.00013698,2]
[353452650,1739842239131,-611.38,0.00013698,2]
[353452651,1739842239140,-500.0,0.00013698,2]
[353452652,1739842239149,-293.27831945,0.00013698,2]
[353452653,1739842239159,-500.0,0.00013698,2]
[353452654,1739842239168,-500.0,0.00013698,2]
[353452655,1739842239177,-500.0,0.00013698,2]
[353452656,1739842239187,-515.3520278,0.00013698,2]
[353452657,1739842239200,-505.0875877,0.00013698,2]
[353452658,1739842239209,-500.0,0.00013698,2]
[353452659,1739842239220,-500.0,0.00013698,2]
[353452660,1739842239229,-500.0,0.00013698,2]
[353452661,1739842239240,-500.0,0.00013698,2]
[353452662,1739842239249,-500.0,0.00013698,2]
[353452663,1739842239258,-500.0,0.00013698,2]
[353452664,1739842239268,-500.0,0.00013698,2]
[353452665,1739842239277,-500.0,0.00013698,2]
[353452666,1739842239287,-500.0,0.00013698,2]
[353452667,1739842239296,-500.0,0.00013698,2]
[353452668,1739842239306,-500.0,0.00013698,2]
[353452669,1739842239315,-500.0,0.00013698,2]
[353452670,1739842239324,-500.0,0.00013698,2]
[353452671,1739842239333,-500.0,0.00013698,2]
[353452672,1739842239343,-500.0,0.00013698,2]
[353452673,1739842239352,-500.0,0.00013698,2]
[353452674,1739842239363,-500.0,0.00013698,2]
[353452675,1739842239372,-500.0,0.00013698,2]
[353452676,1739842239381,-500.0,0.00013698,2]
[353452677,1739842239391,-500.0,0.00013698,2]
[353452678,1739842239401,-500.0,0.00013698,2]
[353452679,1739842239411,-500.0,0.00013698,2]
[353452680,1739842239420,-500.0,0.00013698,2]
[353452681,1739842239429,-500.0,0.00013698,2]
[353452682,1739842239439,-500.0,0.00013698,2]
[353452683,1739842239448,-684.61,0.00013698,2]
[353452684,1739842239457,-500.0,0.00013698,2]
[353452685,1739842239467,-500.0,0.00013698,2]
[353452686,1739842239476,-500.0,0.00013698,2]
[353452687,1739842239486,-500.0,0.00013698,2]
[353452688,1739842239495,-500.0,0.00013698,2]
[353452689,1739842239505,-500.0,0.00013698,2]
[353452690,1739842239514,-500.0,0.00013698,2]
[353452691,1739842239524,-500.0,0.00013698,2]
[353452692,1739842239533,-500.0,0.00013698,2]
[353452693,1739842239542,-500.0,0.00013698,2]
[353452694,1739842239553,-269.19442952,0.00013698,2]
[353452695,1739842239562,-500.0,0.00013698,2]
[353452696,1739842239572,-500.0,0.00013698,2]
[353452697,1739842239582,-500.0,0.00013698,2]
[353452698,1739842239599,-500.0,0.00013698,2]
[353452699,1739842239608,-500.0,0.00013698,2]
[353452700,1739842239618,-500.94804017,0.00013698,2]
[353452701,1739842239627,-500.0,0.00013698,2]
[353452702,1739842239637,-500.0,0.00013698,2]
[353452703,1739842239646,-619.41708239,0.00013698,2]
[353452704,1739842239656,-624.69718362,0.00013698,2]
[353452705,1739842239666,-508.08980421,0.00013698,2]
[353452706,1739842239675,-500.0,0.00013698,2]
[353452707,1739842239685,-500.0,0.00013698,2]
[353452708,1739842239695,-500.0,0.00013698,2]
[353452709,1739842239706,-508.75677761,0.00013698,2]
[353452710,1739842239717,-500.0,0.00013698,2]
[353452711,1739842239726,-500.0,0.00013698,2]
[353452712,1739842239736,-500.0,0.00013698,2]
[353452713,1739842239745,-500.0,0.00013698,2]
[353452714,1739842239755,-500.0,0.00013698,2]
[353452715,1739842239764,-500.0,0.00013698,2]
[353452716,1739842239774,-500.0,0.00013698,2]
[353452717,1739842239784,-500.0,0.00013698,2]
[353452718,1739842239882,-500.0,0.00013698,2]
[353452719,1739842239895,-500.0,0.00013698,2]
[353452720,1739842239905,-500.0,0.00013698,2]
[353452721,1739842239915,-501.25070969,0.00013698,2]
[353452722,1739842239924,-500.0,0.00013698,2]
[353452725,1739842239934,-500.0,0.00013698,2]
[353452728,1739842239944,-500.0,0.00013698,2]
[353452729,1739842239953,-500.0,0.00013698,2]
[353452730,1739842239965,-500.0,0.00013698,2]
[353452731,1739842239975,-500.0,0.00013698,2]
[353452732,1739842239984,-500.0,0.00013698,2]
[353452733,1739842239994,-785.12,0.00013698,2]
[353452734,1739842240004,-3070.69,0.00013698,2]
[353452735,1739842240013,-500.0,0.00013698,2]
[353452736,1739842240023,-500.0,0.00013698,2]
[353452737,1739842240032,-500.0,0.00013698,2]
[353452738,1739842240041,-500.0,0.00013698,2]
[353452739,1739842240051,-500.0,0.00013698,2]
[353452740,1739842240060,-500.0,0.00013698,2]
[353452741,1739842240070,-500.0,0.00013698,2]
[353452742,1739842240080,-500.0,0.00013698,2]
[353452743,1739842240089,-500.0,0.00013698,2]
[353452744,1739842240099,-500.0,0.00013698,2]
[353452745,1739842240108,-500.0,0.00013698,2]
[353452746,1739842240118,-500.0,0.00013698,2]
[353452748,1739842240127,-500.0,0.00013698,2]
[353452750,1739842240136,-626.87917455,0.00013698,2]
[353452751,1739842240145,-500.0,0.00013698,2]
[353452752,1739842240156,-500.0,0.00013698,2]
[353452753,1739842240165,-500.0,0.00013698,2]
[353452754,1739842240174,-500.0,0.00013698,2]
[353452755,1739842240183,-500.0,0.00013698,2]
[353452756,1739842240193,-542.79,0.00013698,2]
[353452757,1739842240204,-500.0,0.00013698,2]
[353452759,1739842240216,-500.0,0.00013698,2]
[353452761,1739842240225,-500.0,0.00013698,2]
[353452762,1739842240234,-500.0,0.00013698,2]
[353452763,1739842240243,-500.0,0.00013698,2]
[353452764,1739842240252,-500.0,0.00013698,2]
[353452765,1739842240261,-500.0,0.00013698,2]
[353452766,1739842240270,-500.0,0.00013698,2]
[353452767,1739842240280,-500.0,0.00013698,2]
[353452768,1739842240289,-500.0,0.00013698,2]
[353452769,1739842240298,-500.0,0.00013698,2]
[353452770,1739842240308,-500.24012858,0.00013698,2]
[353452771,1739842240317,-565.26437193,0.00013698,2]